bitfinex/quotes_ETHUSD_20240730
["timestamp","ask_amount","ask_price","bid_price","bid_amount"]
[1722344416127,2.97404,3362.5,3361.9,2.97449]
[1722344416291,2.97404,3362.5,3362.0,0.2982]
[1722344416608,2.97415,3362.3,3362.0,35.0]
[1722344416765,2.97402,3362.5,3362.0,35.0]
[1722344417170,2.97402,3362.5,3362.1,0.05034724]
[1722344418009,2.97393,3362.6,3362.1,0.05034724]
[1722344418215,3.04841342,3362.5,3362.1,0.05034724]
[1722344418397,2.97406,3362.5,3362.1,0.05034724]
[1722344418911,2.97407,3362.4,3362.1,0.05034724]
[1722344419082,2.97402,3362.5,3362.1,0.05034724]
[1722344419293,0.0743534,3362.6,3362.1,0.05034724]
[1722344419495,2.97387,3362.7,3362.1,0.05034724]
[1722344419886,2.97389,3362.6,3362.1,0.05034724]
[1722344420083,2.97402,3362.5,3362.1,0.05034724]
[1722344420318,2.97402,3362.5,3362.0,35.2982]
[1722344420581,2.97402,3362.5,3362.1,0.04961832]
[1722344421220,2.97391,3362.6,3362.1,3.02391832]
[1722344422079,2.97391,3362.6,3362.1,0.04961832]
[1722344422428,2.97412,3362.4,3362.1,0.04961832]
[1722344422729,2.97393,3362.6,3362.1,0.04961832]
[1722344422884,2.97388,3362.7,3362.1,3.02392832]
[1722344423491,2.97364,3362.9,3362.3,2.9741]
[1722344423695,2.97373,3362.8,3362.4,35.04955884]
[1722344424498,2.97373,3362.8,3362.4,0.04955884]
[1722344424697,2.97373,3362.8,3362.2,2.97418]
[1722344424892,2.97373,3362.8,3362.3,0.04957867]
[1722344425093,2.97362,3362.9,3362.4,2.97405]
[1722344425438,2.9734,3363.2,3362.5,3.02346902]
[1722344425630,2.9734,3363.2,3362.6,2.97388]
[1722344425841,2.9734,3363.2,3362.6,37.97388]
[1722344425986,2.9734,3363.2,3362.7,0.04946382]
[1722344426523,2.9737,3362.9,3362.7,0.04946382]
[1722344426771,2.97371,3362.8,3362.7,0.04946382]
[1722344427086,2.97362,3362.9,3362.7,0.04946382]
[1722344428138,2.97353,3363.0,3362.7,0.04946382]
[1722344428538,2.97364,3362.9,3362.7,0.04946382]
[1722344429038,2.97353,3363.1,3362.5,2.97392]
[1722344429238,2.97328,3363.3,3362.7,2.97374]
[1722344429536,2.97328,3363.3,3362.8,0.04938713]
[1722344429739,2.97328,3363.3,3362.7,3.03320846]
[1722344429938,2.97328,3363.3,3362.9,0.04936731]
[1722344430181,2.9732,3363.4,3362.7,3.03318846]
[1722344430349,2.97309,3363.5,3363.0,3.02281749]
[1722344430555,2.97297,3363.7,3363.1,2.97343]
[1722344430887,2.97274,3363.9,3363.3,2.4998]
[1722344431094,0.07432449,3364.0,3363.3,2.4998]
[1722344431298,0.07432449,3364.0,3363.4,0.04894833]
[1722344431476,0.07432449,3364.0,3362.9,2.4709]
[1722344431477,2.97328,3363.3,3362.9,2.4709]
[1722344431786,2.97309,3363.5,3362.6,37.97383]
[1722344431787,2.97349,3363.1,3363.0,0.04902758]
[1722344432280,2.97353,3363.0,3362.6,35.0]
[1722344432483,2.97376,3362.8,3362.1,5.45917]
[1722344432665,0.55,3362.9,3362.2,2.97423]
[1722344432870,2.97384,3362.7,3362.2,3.27243]
[1722344433079,2.97384,3362.7,3362.1,2.4849]
[1722344433080,2.97402,3362.5,3362.1,2.4849]
[1722344433243,2.97402,3362.5,3362.1,5.4849]
[1722344433440,2.97421,3362.3,3361.6,5.3126]
[1722344433787,2.97405,3362.5,3361.9,3.27266]
[1722344434595,2.97407,3362.4,3361.9,3.27266]
[1722344434897,2.97403,3362.5,3361.9,0.2982]
[1722344435405,2.97416,3362.3,3361.9,0.2982]
[1722344436048,3.04841352,3362.4,3361.9,0.2982]
[1722344436249,2.97418,3362.3,3361.9,0.2982]
[1722344436848,5.94808,3362.5,3361.9,3.2727]
[1722344437050,2.97403,3362.5,3361.9,0.2982]
[1722344437297,2.97403,3362.5,3361.6,2.3379]
[1722344437298,3.04843311,3362.4,3361.6,2.3379]
[1722344437463,3.52416,3362.3,3361.3,0.2982]
[1722344437795,2.97492,3361.5,3361.3,0.2982]
[1722344438020,2.97492,3361.5,3360.9,2.97535]
[1722344438146,0.07436965,3362.0,3360.8,2.3964]
[1722344438352,2.97464,3361.8,3361.2,0.2982]
[1722344438587,2.97456,3361.9,3361.4,3.27313]
[1722344438588,2.97453,3361.9,3361.4,3.27313]
[1722344439299,2.97438,3362.1,3361.4,3.33259398]
[1722344439455,2.97446,3362.0,3361.5,5.37126]
[1722344439649,2.97446,3362.0,3361.6,0.05948918]
[1722344440311,2.97451,3361.9,3361.7,0.04830392]
[1722344440613,2.97459,3361.8,3361.7,0.04830392]
[1722344440762,5.94918,3361.8,3361.7,0.04830392]
[1722344440962,2.97479,3361.6,3361.4,0.2982]
[1722344441405,2.97476,3361.7,3361.4,0.2982]
[1722344441612,2.97476,3361.7,3361.0,2.3964]
[1722344441613,2.97508,3361.3,3361.0,0.2982]
[1722344441772,2.975,3361.4,3361.0,0.2982]
[1722344442803,2.975,3361.4,3360.9,3.27358]
[1722344443097,2.97504,3361.3,3360.9,0.2982]
[1722344443961,2.97487,3361.5,3360.9,3.27358]
[1722344444312,2.97498,3361.4,3360.8,5.97547]
[1722344444517,2.97498,3361.4,3360.9,2.97538]
[1722344445398,2.97505,3361.3,3360.8,3.2982]
[1722344445644,2.97505,3361.3,3360.7,3.2982]
[1722344445797,2.97519,3361.2,3360.7,3.2982]
[1722344446660,2.97527,3361.1,3360.7,3.2982]
[1722344447564,2.97445,3362.0,3360.9,2.97539]
[1722344448209,2.97484,3361.6,3361.0,3.27349]
[1722344448495,2.97484,3361.6,3361.1,2.97521]
[1722344448705,2.97484,3361.6,3360.9,2.97533]
[1722344448858,2.97486,3361.5,3360.9,2.97533]
[1722344449201,2.97486,3361.5,3361.1,0.2982]
[1722344450463,2.97486,3361.5,3361.0,2.97528]
[1722344451702,5.94979,3361.5,3361.0,0.2982]
[1722344452013,2.9751,3361.3,3360.7,5.97554]
[1722344452316,2.97517,3361.2,3360.7,3.0]
[1722344452485,2.97517,3361.2,3360.7,3.2982]
[1722344453075,2.97499,3361.4,3360.8,2.97543]
[1722344453276,2.97487,3361.5,3360.9,2.97533]
[1722344453525,2.97487,3361.5,3361.0,0.2982]
[1722344454527,2.97517,3361.2,3360.7,6.26451076]
[1722344454688,2.97523,3361.1,3360.7,3.27962556]
[1722344455020,3.04926003,3361.5,3360.5,3.27394]
[1722344455209,2.97512,3361.2,3360.5,3.27394]
[1722344455518,2.9753,3361.0,3360.6,0.04893373]
[1722344457277,3.04954139,3361.2,3360.6,0.04893373]
[1722344457494,2.97557,3360.7,3360.6,0.04893373]
[1722344457915,2.97557,3360.7,3360.6,0.04903687]
[1722344458273,2.97578,3360.5,3360.3,2.6597]
[1722344458480,2.97578,3360.5,3360.3,0.2982]
[1722344458675,2.97578,3360.5,3360.1,0.2982]
[1722344459521,2.97566,3360.6,3360.1,0.2982]
[1722344459680,2.97566,3360.6,3360.1,3.27425]
[1722344459875,2.97557,3360.7,3360.3,0.2982]
[1722344460106,5.95122,3360.7,3360.3,0.2982]
[1722344460320,2.97557,3360.7,3360.3,0.2982]
[1722344460487,2.97557,3360.7,3360.2,2.976]
[1722344460488,2.97517,3361.2,3360.6,2.97561]
[1722344460696,2.97517,3361.2,3360.7,5.65235574]
[1722344460697,2.97516,3361.2,3360.7,5.65235574]
[1722344460908,3.527766,3361.4,3360.8,2.97546]
[1722344461204,3.527766,3361.4,3360.7,2.686]
[1722344461417,3.3278566,3361.3,3360.7,5.66152]
[1722344461603,2.97517,3361.2,3360.7,2.686]
[1722344461936,2.97517,3361.2,3360.7,5.66153]
[1722344463338,2.97517,3361.2,3360.7,2.686]
[1722344463483,0.3527766,3361.3,3360.7,0.2982]
[1722344463484,2.97529,3361.1,3360.7,0.2982]
[1722344463688,2.9751,3361.3,3360.7,3.27369]
[1722344463888,2.97515,3361.2,3360.8,2.97547]
[1722344464099,2.97477,3361.6,3361.1,2.97521]
[1722344464298,2.97488,3361.5,3361.0,2.97524]
[1722344464548,0.553054,3362.0,3361.1,0.05950158]
[1722344464707,2.97415,3362.3,3361.6,2.97473]
[1722344465059,2.97415,3362.3,3361.7,3.02295364]
[1722344465060,2.97424,3362.2,3361.7,3.02295364]
[1722344465400,2.97436,3362.1,3361.7,0.04827364]
[1722344466146,2.97447,3362.0,3361.7,0.04827364]
[1722344466300,2.97452,3361.9,3361.2,2.97506]
[1722344466505,3.271972,3361.9,3361.8,0.04802633]
[1722344466705,3.271972,3361.9,3361.2,2.97506]
[1722344466706,3.271972,3361.9,3361.3,2.97501]
[1722344466958,2.9744,3362.1,3361.3,2.97501]
[1722344467157,2.97429,3362.2,3361.4,0.35769064]
[1722344467451,2.97437,3362.1,3361.6,3.27296]
[1722344467761,2.97437,3362.1,3361.7,0.04804616]
[1722344467914,2.97442,3362.0,3361.7,0.04804616]
[1722344468306,2.97442,3362.0,3361.5,3.03433064]
[1722344468613,2.97442,3362.0,3361.8,0.04802633]
[1722344468847,3.271862,3362.0,3361.5,3.03433064]
[1722344469007,3.271862,3362.0,3361.9,0.0480065]
[1722344469211,3.271862,3362.0,3361.5,3.33253064]
[1722344469529,0.07436332,3361.9,3361.0,2.3219]
[1722344469747,0.07436332,3361.9,3361.1,0.04816518]
[1722344469748,2.97499,3361.4,3361.1,0.04816518]
[1722344469915,2.97499,3361.4,3360.6,2.97563]
[1722344469916,2.97504,3361.3,3360.7,2.97556]
[1722344470119,2.97504,3361.3,3360.8,0.0482247]
[1722344470120,2.97523,3361.1,3360.8,0.0482247]
[1722344470346,2.97498,3361.4,3360.8,0.2982]
[1722344470518,3.28003605,3361.3,3360.8,0.2982]
[1722344470708,2.975,3361.4,3360.9,0.04820486]
[1722344471062,2.975,3361.4,3360.9,2.97534]
[1722344471201,2.975,3361.4,3361.0,0.34638501]
[1722344471398,0.07437841,3361.7,3361.1,2.3664]
[1722344471602,2.3507,3362.4,3361.4,2.97488]
[1722344471848,2.3507,3362.4,3361.2,3.03457269]
[1722344471849,5.94916,3361.9,3361.3,2.97503]
[1722344472073,0.07436341,3362.2,3361.5,0.04808583]
[1722344472254,0.07436341,3362.2,3361.4,0.34630566]
[1722344472255,2.97442,3362.0,3361.4,0.34630566]
[1722344472446,2.97442,3362.0,3361.6,0.048066]
[1722344472640,2.97442,3362.0,3361.5,3.08242651]
[1722344472854,2.97442,3362.0,3361.7,0.04804616]
[1722344473062,2.97442,3362.0,3361.6,0.048066]
[1722344473292,3.04886337,3361.9,3361.8,0.04802633]
[1722344473578,2.97479,3361.6,3361.1,2.9752]
[1722344473759,2.97459,3361.8,3361.2,3.02302207]
[1722344473760,2.97468,3361.7,3361.2,3.02302207]
[1722344473936,2.97468,3361.7,3361.2,0.04793207]
[1722344474133,2.97468,3361.7,3361.2,0.34613207]
[1722344474435,2.97488,3361.5,3361.2,0.04793207]
[1722344474949,2.97488,3361.5,3361.3,0.04786959]
[1722344475167,2.97488,3361.5,3361.0,0.2982]
[1722344475370,2.97454,3361.9,3361.1,3.02307927]
[1722344475737,2.97464,3361.8,3361.3,2.97498]
[1722344475962,0.33294836,3362.2,3361.4,0.10744635]
[1722344475963,0.258577,3362.2,3361.4,0.10744635]
[1722344476154,0.258577,3362.2,3361.5,0.2982]
[1722344476356,2.97448,3362.0,3361.6,0.04790959]
[1722344476994,2.97451,3361.9,3361.6,0.04790959]
[1722344477198,3.04876436,3362.1,3361.6,0.04790959]
[1722344477400,3.04875436,3362.1,3361.6,0.04790959]
[1722344478084,2.97442,3362.0,3361.6,0.04790959]
[1722344479106,0.33294137,3362.2,3361.6,0.04790959]
[1722344479107,3.04887437,3361.9,3361.6,0.04790959]
[1722344479311,2.97468,3361.7,3361.6,0.04790959]
[1722344479469,2.97468,3361.7,3361.0,2.442]
[1722344479470,2.97491,3361.5,3361.0,2.442]
[1722344479865,2.97477,3361.6,3361.1,2.97514]
[1722344480093,2.97468,3361.7,3361.2,0.2982]
[1722344481294,2.97468,3361.7,3361.1,2.97513]
[1722344481295,2.97486,3361.5,3361.1,0.2982]
[1722344481606,2.97477,3361.6,3361.1,3.27341]
[1722344482679,2.97477,3361.6,3361.1,6.24856]
[1722344483008,2.97477,3361.6,3361.1,3.27335]
[1722344484630,2.97477,3361.6,3361.1,0.2982]
[1722344484631,2.97486,3361.5,3361.1,0.2982]
[1722344485192,2.97486,3361.5,3361.2,0.04789654]
[1722344485627,2.97496,3361.4,3361.2,0.04789654]
[1722344486598,2.97496,3361.4,3361.2,35.04789654]
[1722344486802,6.02443582,3361.3,3361.2,0.04789654]
[1722344487034,2.97528,3361.1,3360.7,7.6482]
[1722344487230,2.97531,3361.0,3360.7,7.6482]
[1722344487547,2.97522,3361.1,3360.8,35.0]
[1722344487741,2.97513,3361.2,3360.8,35.2982]
[1722344487942,2.97508,3361.3,3360.8,38.27361]
[1722344488244,2.97513,3361.2,3360.8,38.27361]
[1722344488451,2.97504,3361.3,3360.8,38.27361]
[1722344489348,2.97513,3361.2,3360.8,35.2982]
[1722344489846,0.40978913,3361.5,3360.8,35.2982]
[1722344489847,2.97526,3361.1,3360.8,35.2982]
[1722344490044,2.97512,3361.2,3360.8,35.2982]
[1722344490249,2.97513,3361.2,3360.8,35.2982]
[1722344490402,3.04938695,3361.4,3360.8,38.27366]
[1722344490599,2.97512,3361.2,3360.8,35.2982]
[1722344490958,2.97501,3361.4,3360.9,2.97538]
[1722344491553,2.97501,3361.4,3361.0,35.0]
[1722344491969,2.97469,3361.7,3361.2,2.97511]
[1722344492338,2.97469,3361.7,3361.2,2.97506]
[1722344492660,2.97469,3361.7,3361.3,35.0]
[1722344493014,2.97482,3361.6,3361.3,35.0]
[1722344493215,3.272159,3361.7,3361.3,35.0]
[1722344493421,2.97487,3361.5,3361.3,35.0]
[1722344494261,2.97518,3361.2,3360.7,2.97556]
[1722344494422,3.28013531,3361.2,3360.7,2.97556]
[1722344494621,3.04956006,3361.2,3360.7,2.97556]
[1722344494868,2.97522,3361.1,3360.8,35.0]
[1722344495022,2.97503,3361.3,3360.8,35.0]
[1722344495348,2.97503,3361.3,3360.8,35.2982]
[1722344495759,2.97492,3361.5,3360.8,35.2982]
[1722344495963,5.30178,3361.9,3360.9,3.03484401]
[1722344496118,2.97458,3361.9,3361.3,2.2548]
[1722344496434,2.97458,3361.9,3361.4,0.2982]
[1722344496820,2.97455,3361.9,3361.5,0.2982]
[1722344497166,2.97455,3361.9,3361.3,5.22976]
[1722344497350,5.94895,3362.0,3361.4,3.03443678]
[1722344497523,2.97463,3361.8,3361.4,0.05949678]
[1722344497724,0.0743648,3362.1,3361.4,3.03440678]
[1722344498039,2.97442,3362.0,3361.5,0.2982]
[1722344498238,0.0743648,3362.1,3361.6,2.97472]
[1722344498462,2.9741,3362.4,3361.7,0.05949164]
[1722344498790,2.97398,3362.5,3362.0,2.97437]
[1722344499087,2.9738,3362.7,3362.2,2.97423]
[1722344499254,5.97367,3362.9,3362.3,2.97414]
[1722344499255,2.97371,3362.8,3362.3,2.97414]
[1722344499457,2.97371,3362.8,3362.1,0.05948256]
[1722344499458,2.9738,3362.7,3362.2,2.97422]
[1722344499667,2.9738,3362.7,3362.1,3.03376256]
[1722344499983,3.0,3362.9,3362.1,3.03376256]
[1722344499984,2.97371,3362.8,3362.2,37.97416]
[1722344500291,2.97371,3362.8,3362.3,0.0418703]
[1722344500583,2.97371,3362.8,3362.1,2.97424]
[1722344500793,2.97371,3362.8,3362.2,3.07559799]
[1722344501084,2.97371,3362.8,3362.2,38.07559799]
[1722344501584,2.97381,3362.7,3362.2,35.04189012]
[1722344502076,2.97415,3362.3,3362.2,35.04189012]
[1722344504840,2.97415,3362.3,3362.2,0.04189012]
[1722344505046,5.9483,3362.3,3362.2,0.04189012]
[1722344505251,5.9483,3362.3,3361.6,2.2893]
[1722344505252,2.97437,3362.1,3361.6,2.2893]
[1722344505560,2.97437,3362.1,3361.7,35.04146404]
[1722344505993,0.07436094,3362.2,3361.7,35.04146404]
[1722344505994,3.04860094,3362.2,3361.7,35.04146404]
[1722344506392,2.97424,3362.2,3361.7,35.04146404]
[1722344506593,2.97424,3362.2,3361.7,38.01614404]
[1722344507100,2.97437,3362.1,3361.7,35.04146404]
[1722344507414,2.97437,3362.1,3361.7,35.33966404]
[1722344507579,2.97453,3361.9,3361.7,35.04146404]
[1722344507780,5.40812,3362.5,3361.7,35.04146404]
[1722344507781,0.0743634,3362.4,3361.7,35.04146404]
[1722344507979,2.97459,3361.8,3361.7,0.04146404]
[1722344508179,2.97459,3361.8,3361.3,5.30159]
[1722344508494,2.97459,3361.8,3361.4,35.04159805]
[1722344508692,2.9745,3361.9,3361.4,35.04159805]
[1722344509203,2.9745,3361.9,3361.5,0.2982]
[1722344509403,2.9745,3361.9,3361.6,0.04160097]
[1722344509620,2.97411,3362.4,3361.5,2.97481]
[1722344509807,2.97411,3362.4,3361.6,35.04160097]
[1722344510122,2.97428,3362.2,3361.7,0.2982]
[1722344510292,2.97428,3362.2,3361.6,0.04160097]
[1722344510498,2.97415,3362.3,3361.8,0.0415755]
[1722344510723,2.97415,3362.3,3361.9,35.0]
[1722344510918,2.97415,3362.3,3361.9,0.04155567]
[1722344511282,2.97415,3362.3,3361.8,35.2982]
[1722344511483,2.97426,3362.2,3362.0,0.04151455]
[1722344511703,2.97426,3362.2,3361.9,0.04153438]
[1722344511931,2.97426,3362.2,3362.1,0.04149472]
[1722344512143,2.97416,3362.3,3362.0,0.04151455]
[1722344512423,2.97394,3362.6,3362.1,0.04149472]
[1722344512628,2.97411,3362.4,3361.9,2.9745]
[1722344512927,2.97416,3362.3,3362.0,0.04147197]
[1722344513285,0.07435647,3362.5,3361.8,3.27271]
[1722344513481,2.9741,3362.4,3362.1,0.04145214]
[1722344513686,2.97415,3362.3,3361.8,3.27277]
[1722344513887,2.97415,3362.3,3362.2,0.04142167]
[1722344514084,3.27891564,3362.4,3361.9,2.97449]
[1722344514310,2.97407,3362.4,3362.2,0.04142167]
[1722344514621,3.813179,3362.9,3361.7,35.2982]
[1722344514622,2.97436,3362.1,3361.7,35.2982]
[1722344514828,3.04877954,3362.0,3361.4,10.32489]
[1722344515132,2.97471,3361.7,3361.4,7.35]
[1722344515338,2.97471,3361.7,3361.5,0.04156757]
[1722344515339,2.97477,3361.7,3361.5,0.04156757]
[1722344516136,2.97477,3361.6,3361.5,0.04156757]
[1722344516631,2.97477,3361.6,3361.5,0.04167757]
[1722344516632,5.94961,3361.6,3361.5,0.04167757]
[1722344516786,5.94962,3361.6,3361.1,42.35]
[1722344516980,2.97444,3362.0,3361.2,0.04040375]
[1722344517249,2.97479,3361.6,3361.2,0.04040375]
[1722344517419,5.94963,3361.6,3361.2,0.33860375]
[1722344517619,2.97479,3361.6,3361.2,0.33860375]
[1722344517924,2.97479,3361.6,3361.2,0.04040375]
[1722344518098,3.04906507,3361.7,3361.2,0.04040375]
[1722344518298,2.97479,3361.6,3361.2,0.04040375]
[1722344518510,2.97479,3361.6,3361.2,0.33860375]
[1722344518803,2.97492,3361.5,3361.2,0.04040375]
[1722344519113,2.97477,3361.6,3361.2,0.04040375]
[1722344519587,2.97477,3361.6,3361.2,0.33860375]
[1722344519788,4.2024079,3362.8,3361.3,0.05950008]
[1722344520037,2.97464,3361.8,3361.4,0.04036408]
[1722344520203,2.97464,3361.8,3361.4,35.0]
[1722344520525,2.97477,3361.6,3361.5,0.04034424]
[1722344520726,2.9746,3361.8,3361.5,0.04034424]
[1722344520927,2.97477,3361.6,3361.5,0.04034424]
[1722344521187,3.57702473,3361.7,3361.2,2.97512]
[1722344521354,5.94913,3361.9,3361.3,38.01555006]
[1722344521559,2.9746,3361.8,3361.3,38.31375006]
[1722344521857,2.9747,3361.7,3361.3,35.04054006]
[1722344522635,2.97459,3361.8,3361.3,38.31376006]
[1722344522861,0.07436986,3362.1,3361.5,2.9748]
[1722344523075,2.97433,3362.1,3361.6,2.97473]
[1722344523253,2.97433,3362.1,3361.6,3.0152354]
[1722344524948,5.94872,3362.1,3361.6,0.0405054]
[1722344525148,3.04869508,3362.1,3361.6,0.0405054]
[1722344525455,3.04869508,3362.1,3361.6,3.0152754]
[1722344525873,5.94844,3362.3,3361.7,2.97464]
[1722344526064,6.830294,3362.3,3361.7,2.97464]
[1722344526270,2.97424,3362.2,3361.8,0.0403618]
[1722344526672,3.04860506,3362.2,3361.8,0.0403618]
[1722344526874,2.97446,3362.0,3361.8,0.0403618]
[1722344527035,2.97462,3361.8,3361.5,35.0]
[1722344527236,6.02372632,3361.7,3361.6,0.04040146]
[1722344527559,2.97499,3361.4,3361.2,7.35]
[1722344527727,6.02443922,3361.3,3361.2,7.35]
[1722344527934,3.04940922,3361.3,3361.2,7.35]
[1722344528135,3.35435014,3361.3,3361.2,7.35]
[1722344528385,0.37932014,3361.3,3361.2,7.35]
[1722344528598,3.04940922,3361.3,3361.2,7.35]
[1722344528881,0.07437922,3361.3,3361.2,7.35]
[1722344529075,2.97495,3361.4,3361.2,7.35]
[1722344529233,0.0743792,3361.5,3361.2,7.35]
[1722344529234,3.0492792,3361.5,3361.2,7.35]
[1722344529883,2.97503,3361.3,3361.2,7.35]
[1722344530253,2.97503,3361.3,3361.2,7.39065827]
[1722344530740,6.55249662,3361.3,3361.2,7.39065827]
[1722344531137,3.57746662,3361.3,3361.2,7.39065827]
[1722344531364,0.07437919,3361.4,3361.2,7.39065827]
[1722344531566,0.07437806,3361.6,3361.2,0.04065827]
[1722344531750,3.04915806,3361.6,3361.2,0.04065827]
[1722344532052,2.97486,3361.5,3361.2,0.04065827]
[1722344532238,2.97486,3361.5,3361.0,2.97529]
[1722344532470,2.97486,3361.5,3361.1,0.04067101]
[1722344532776,0.07437589,3361.4,3361.1,0.04067101]
[1722344532953,2.97486,3361.5,3360.9,2.97539]
[1722344533294,2.97486,3361.5,3361.0,0.0406873]
[1722344533433,2.97499,3361.4,3361.0,0.0406873]
[1722344533641,3.04936804,3361.4,3361.0,0.0406873]
[1722344534290,2.97499,3361.4,3361.0,0.0406873]
[1722344534470,2.97486,3361.5,3361.0,3.0159873]
[1722344534671,2.97486,3361.5,3361.0,0.0406873]
[1722344535555,2.97504,3361.3,3360.8,5.26143]
[1722344535770,2.97525,3361.1,3360.9,0.04068584]
[1722344535958,2.97525,3361.1,3360.7,7.6482]
[1722344536160,0.07438037,3361.6,3360.7,7.6482]
[1722344536161,2.97513,3361.2,3360.8,0.04085831]
[1722344536374,3.04951022,3361.2,3360.7,0.2982]
[1722344536555,3.04951022,3361.2,3360.7,3.27376]
[1722344536851,3.04951022,3361.2,3360.8,0.03955706]
[1722344537053,3.04951022,3361.2,3360.7,3.27376]
[1722344537266,2.97522,3361.1,3360.8,0.03955706]
[1722344537666,2.97522,3361.1,3360.6,3.27382]
[1722344537867,2.97503,3361.3,3360.9,0.03953722]
[1722344538079,2.97503,3361.3,3360.8,2.97547]
[1722344538242,2.97503,3361.3,3361.0,0.03951738]
[1722344538446,2.97503,3361.3,3360.8,2.97541]
[1722344539091,2.97503,3361.3,3360.9,0.03953722]
[1722344539377,3.04933025,3361.4,3360.9,2.97539]
[1722344539583,3.04933025,3361.4,3361.0,0.03951738]
[1722344540343,2.97495,3361.4,3361.0,0.03951738]
[1722344540711,2.97488,3361.5,3361.0,2.44871738]
[1722344540995,2.97485,3361.6,3361.1,2.97519]
[1722344541199,2.97485,3361.6,3361.1,3.01468754]
[1722344541501,2.9749,3361.5,3361.1,0.03949754]
[1722344541860,0.69050091,3362.0,3361.1,0.09899992]
[1722344542066,2.97473,3361.7,3361.2,2.97507]
[1722344542459,2.97473,3361.7,3361.3,0.03819489]
[1722344542671,2.97473,3361.7,3361.2,2.97507]
[1722344543020,2.97473,3361.7,3361.3,0.03819489]
[1722344543193,2.97473,3361.7,3361.2,2.97507]
[1722344543360,2.97473,3361.7,3361.1,0.05950238]
[1722344543361,2.97478,3361.6,3361.4,0.03817506]
[1722344543558,2.97478,3361.6,3361.0,2.7074]
[1722344543559,2.97477,3361.6,3361.0,5.68269]
[1722344543773,2.97477,3361.6,3361.1,3.01343457]
[1722344544497,2.97468,3361.7,3361.2,2.97508]
[1722344544860,2.97468,3361.7,3361.3,0.03819489]
[1722344545098,2.97468,3361.7,3361.2,2.97508]
[1722344545317,2.97468,3361.7,3361.4,0.03817506]
[1722344545468,2.97468,3361.7,3361.3,0.03819489]
[1722344545670,2.97455,3361.9,3361.5,0.03815522]
[1722344545884,2.97455,3361.9,3361.4,0.03817506]
[1722344545885,2.97471,3361.7,3361.4,0.03817506]
[1722344546069,2.97471,3361.7,3361.6,0.03813539]
[1722344546266,2.97477,3361.6,3361.5,0.03815522]
[1722344546578,2.97477,3361.6,3361.2,0.2982]
[1722344547290,3.0489611,3361.8,3361.2,0.2982]
[1722344547497,3.0489611,3361.8,3361.3,2.97502]
[1722344547793,5.94925,3361.8,3361.3,2.97502]
[1722344547961,2.97468,3361.7,3361.1,0.2982]
[1722344548304,2.97503,3361.4,3361.1,0.2982]
[1722344549064,2.97503,3361.4,3360.9,10.32534]
[1722344549293,2.97503,3361.4,3361.0,0.2982]
[1722344549464,5.95005,3361.4,3361.0,0.2982]
[1722344549875,2.97509,3361.3,3360.9,7.35]
[1722344550080,3.04939494,3361.4,3360.7,5.3682]
[1722344550318,2.97514,3361.2,3360.7,5.36826]
[1722344550987,5.95035,3361.2,3360.7,5.36826]
[1722344551191,2.97538,3361.0,3360.5,7.35]
[1722344551407,2.97538,3361.0,3360.5,7.6482]
[1722344551408,5.95075,3361.0,3360.5,7.6482]
[1722344551707,2.97537,3361.0,3360.5,7.35]
[1722344552005,2.97536,3361.0,3360.5,7.35]
[1722344552210,2.97536,3361.0,3360.5,7.6482]
[1722344552789,2.97536,3361.0,3360.4,2.3229]
[1722344552996,2.97552,3360.8,3360.4,2.3229]
[1722344553377,2.97552,3360.8,3360.4,2.6211]
[1722344553895,2.97553,3360.8,3360.2,2.97595]
[1722344554213,2.97553,3360.8,3360.1,10.32609]
[1722344554374,2.97561,3360.7,3360.2,6.2742]
[1722344555229,3.04985062,3360.9,3360.4,0.2982]
[1722344555534,2.97519,3361.2,3360.6,2.97561]
[1722344555833,2.97518,3361.2,3360.6,5.74055]
[1722344555981,2.97503,3361.3,3360.6,5.74055]
[1722344556308,2.97517,3361.2,3360.6,5.74055]
[1722344557303,2.97527,3361.1,3360.6,5.74055]
[1722344557686,2.97513,3361.2,3360.7,2.97555]
[1722344558103,2.97521,3361.1,3360.6,5.74055]
[1722344558425,5.9505,3361.1,3360.6,5.74055]
[1722344558668,2.97521,3361.1,3360.6,5.74055]
[1722344559311,2.97544,3360.9,3360.4,2.9758]
[1722344559629,2.97564,3360.7,3360.2,5.31144]
[1722344559985,2.97564,3360.7,3360.2,2.3355]
[1722344559986,2.97567,3360.6,3360.2,2.3355]
[1722344560193,2.97567,3360.6,3360.3,0.0386134]
[1722344561432,2.97549,3360.8,3360.3,0.0386134]
[1722344561735,3.04974985,3361.0,3360.4,2.97583]
[1722344561736,2.9754,3360.9,3360.4,2.97583]
[1722344562027,2.9754,3360.9,3360.5,0.0385737]
[1722344562230,2.9755,3360.8,3360.5,0.0385737]
[1722344562470,2.9755,3360.8,3360.3,3.27412]
[1722344562682,2.9755,3360.8,3360.6,0.03855386]
[1722344562844,2.9755,3360.8,3360.3,3.27408]
[1722344563046,2.9755,3360.8,3360.7,0.03853401]
[1722344563249,2.9755,3360.8,3360.3,3.27408]
[1722344563477,2.9755,3360.8,3360.7,0.03853401]
[1722344563624,2.97557,3360.7,3360.3,0.2982]
[1722344563831,2.97576,3360.5,3360.3,0.2982]
[1722344564066,2.97576,3360.5,3360.2,0.2982]
[1722344564263,2.97566,3360.6,3360.2,0.2982]
[1722344564638,0.07439286,3360.5,3359.9,0.2982]
[1722344564865,2.97588,3360.4,3359.9,3.27443]
[1722344565638,2.97588,3360.4,3359.9,0.2982]
[1722344565865,2.97588,3360.4,3359.7,7.35]
[1722344565866,0.379427,3360.3,3359.7,7.35]
[1722344566042,2.97635,3359.9,3359.7,7.35]
[1722344566338,2.97623,3360.0,3359.5,2.97661]
[1722344566528,2.97623,3360.0,3359.4,2.3167]
[1722344566942,2.97623,3360.0,3359.5,2.97658]
[1722344567563,2.97594,3360.3,3359.6,0.05952851]